fUST/lending_fUST_20241122
["ID","MTS","AMOUNT","RATE_DAILY","PERIOD"]
[342981297,1732246248907,-151.0,0.00019436,2]
[342981298,1732246248916,-282.457178,0.00019436,2]
[342981299,1732246248926,-151.0,0.00019436,2]
[342981300,1732246248936,-151.0,0.00019436,2]
[342981301,1732246248947,-282.457178,0.00019436,2]
[342981302,1732246248957,-151.0,0.00019436,2]
[342981303,1732246248967,-282.457178,0.00019436,2]
[342981304,1732246248977,-151.0,0.00019436,2]
[342981305,1732246248987,-151.0,0.00019436,2]
[342981306,1732246248997,-282.457178,0.00019436,2]
[342981307,1732246249007,-151.0,0.00019436,2]
[342981308,1732246249017,-282.457179,0.00019436,2]
[342981309,1732246249027,-152.142166,0.00019436,2]
[342981310,1732246249038,-151.0,0.00019436,2]
[342981311,1732246249048,-227.051152,0.00019436,2]
[342981312,1732246249058,-151.0,0.00019436,2]
[342981313,1732246249068,-151.0,0.00019436,2]
[342981314,1732246249079,-212.32321,0.00019436,2]
[342981315,1732246249090,-151.0,0.00019436,2]
[342981316,1732246249100,-151.0,0.00019436,2]
[342981317,1732246249110,-151.0,0.00019436,2]
[342981318,1732246249120,-151.0,0.00019436,2]
[342981319,1732246249130,-151.0,0.00019436,2]
[342981320,1732246249140,-151.0,0.00019436,2]
[342981321,1732246249150,-151.0,0.00019436,2]
[342981322,1732246249159,-1507.143526,0.00019436,2]
[342981323,1732246249173,-151.0,0.00019436,2]
[342981324,1732246249193,-1507.143526,0.00019436,2]
[342981325,1732246249202,-151.0,0.00019436,2]
[342981326,1732246249212,-1507.143526,0.00019436,2]
[342981327,1732246249221,-151.0,0.00019436,2]
[342981328,1732246249231,-1507.143526,0.00019436,2]
[342981329,1732246249241,-151.0,0.00019436,2]
[342981330,1732246249251,-1507.143526,0.00019436,2]
[342981331,1732246249261,-151.0,0.00019436,2]
[342981332,1732246249271,-1507.143526,0.00019436,2]
[342981333,1732246249287,-151.0,0.00019436,2]
[342981334,1732246249297,-1507.143526,0.00019436,2]
[342981335,1732246249306,-1507.143526,0.00019436,2]
[342981336,1732246249316,-151.0,0.00019436,2]
[342981337,1732246249326,-1507.143526,0.00019436,2]
[342981338,1732246249336,-151.0,0.00019436,2]
[342981339,1732246249346,-151.0,0.00019436,2]
[342981340,1732246249356,-151.0,0.00019436,2]
[342981341,1732246249367,-1507.143526,0.00019436,2]
[342981342,1732246249377,-151.0,0.00019436,2]
[342981343,1732246249388,-1507.143526,0.00019436,2]
[342981344,1732246249399,-1507.143526,0.00019436,2]
[342981345,1732246249409,-1507.143526,0.00019436,2]
[342981346,1732246249419,-300.968513,0.00019436,2]
[342981347,1732246249430,-1507.143526,0.00019436,2]
[342981348,1732246249439,-1507.143526,0.00019436,2]
[342981349,1732246249449,-1507.143526,0.00019436,2]
[342981350,1732246249459,-1507.143526,0.00019436,2]
[342981351,1732246249468,-1507.143526,0.00019436,2]
[342981352,1732246249478,-1507.143526,0.00019436,2]
[342981353,1732246249487,-1507.143522,0.00019436,2]
[342981354,1732246249497,-151.0,0.00019436,2]
[342981355,1732246249507,-151.0,0.00019436,2]
[342981356,1732246249517,-207.361798,0.00019436,2]
[342981357,1732246249527,-151.0,0.00019436,2]
[342981358,1732246249541,-151.0,0.00019436,2]
[342981359,1732246249555,-151.0,0.00019436,2]
[342981360,1732246249565,-151.0,0.00019436,2]
[342981361,1732246249575,-151.0,0.00019436,2]
[342981362,1732246249585,-151.0,0.00019436,2]
[342981363,1732246249595,-151.0,0.00019436,2]
[342981364,1732246249605,-156.682777,0.00019436,2]
[342981365,1732246249615,-190.626294,0.00019436,2]
[342981366,1732246249626,-190.626294,0.00019436,2]
[342981367,1732246249635,-190.626294,0.00019436,2]
[342981368,1732246249645,-190.626294,0.00019436,2]
[342981369,1732246249654,-190.626294,0.00019436,2]
[342981370,1732246249663,-190.626294,0.00019436,2]
[342981371,1732246249673,-190.626294,0.00019436,2]
[342981372,1732246249682,-190.626294,0.00019436,2]
[342981373,1732246249692,-190.626294,0.00019436,2]
[342981374,1732246249701,-190.626294,0.00019436,2]
[342981375,1732246249711,-190.626294,0.00019436,2]
[342981376,1732246249721,-190.626294,0.00019436,2]
[342981377,1732246249730,-190.626294,0.00019436,2]
[342981378,1732246249740,-190.626294,0.00019436,2]
[342981379,1732246249750,-190.626294,0.00019436,2]
[342981380,1732246249759,-190.626294,0.00019436,2]
[342981381,1732246249768,-190.626294,0.00019436,2]
[342981382,1732246249777,-190.626294,0.00019436,2]
[342981383,1732246249790,-190.626294,0.00019436,2]
[342981384,1732246249799,-231.052264,0.00019436,2]
[342981385,1732246249808,-231.052264,0.00019436,2]
[342981386,1732246249818,-231.052264,0.00019436,2]
[342981387,1732246249827,-190.6263,0.00019436,2]
[342981388,1732246249837,-231.052264,0.00019436,2]
[342981389,1732246249846,-231.052264,0.00019436,2]
[342981390,1732246249855,-231.052264,0.00019436,2]
[342981391,1732246249864,-231.052264,0.00019436,2]
[342981392,1732246249874,-231.052264,0.00019436,2]
[342981393,1732246249883,-231.052264,0.00019436,2]
[342981394,1732246249893,-231.052264,0.00019436,2]
[342981395,1732246249902,-231.052264,0.00019436,2]
[342981396,1732246249911,-231.052264,0.00019436,2]
[342981397,1732246249921,-231.052264,0.00019436,2]
[342981398,1732246249931,-231.052264,0.00019436,2]
[342981399,1732246249940,-231.052264,0.00019436,2]
[342981400,1732246249950,-231.052264,0.00019436,2]
[342981401,1732246249959,-231.052264,0.00019436,2]
[342981402,1732246249969,-231.052264,0.00019436,2]
[342981403,1732246249978,-231.052264,0.00019436,2]
[342981404,1732246249987,-0.33929781,0.00019436,2]
[342981409,1732246612817,335.692082,0.00013973,2]
[342981411,1732246988934,-1385229.5740276,0.00029743,10]
[342981412,1732246988959,-1614770.4259724,0.00029743,10]
[342981413,1732247018368,-1804968.57166531,0.00029743,10]
[342981414,1732247018394,-1195031.42833469,0.00029743,10]
[342981415,1732247038548,-1217853.95823806,0.00029743,10]
[342981416,1732247038576,-1758169.57562143,0.00029743,10]
[342981417,1732247038601,-1374388.24469088,0.00029743,10]
[342981418,1732247038627,-649588.22144963,0.00029743,10]
[342981419,1732247043650,-584208.67531763,0.00029743,10]
[342981420,1732247043678,-526479.68598909,0.00029743,10]
[342981421,1732247043707,-1603715.69911567,0.00029743,10]
[342981422,1732247043734,-1133128.05145863,0.00029743,10]
[342981423,1732247043762,-1152467.88811898,0.00029743,10]
[342981424,1732247063157,-2051257.81038123,0.00029743,10]
[342981425,1732247063187,-329200.11960026,0.00029743,10]
[342981426,1732247063214,-862981.81578551,0.00029743,10]
[342981427,1732247063243,-667988.33476706,0.00029743,10]
[342981428,1732247063269,-88571.91946594,0.00029743,10]
[342981429,1732247080644,-186.75,0.00029743,30]
[342981430,1732247080669,-534.0,0.00029743,120]
[342981431,1732247080696,-667.66163842,0.00029743,120]
[342981432,1732247080720,-306.70329476,0.00029743,120]
[342981433,1732247080745,-257.42306086,0.00029743,120]
[342981434,1732247080769,-300.209999,0.00029743,120]
[342981435,1732247080794,-3431.56246887,0.00029743,120]
[342981436,1732247080820,-1681.67360095,0.00029743,120]
[342981437,1732247080844,-4442.40886728,0.00029743,20]
[342981438,1732247080869,-15673.0,0.00029743,30]
[342981439,1732247080894,-30842.49170782,0.00029743,30]
[342981440,1732247080919,-5829.55081637,0.00029743,30]
[342981441,1732247080945,-37800.40793986,0.00029743,30]
[342981442,1732247080971,-1435.43825862,0.00029743,30]
[342981443,1732247080995,-290.0,0.00029743,120]
[342981444,1732247081019,-55505.41269867,0.00029743,30]
[342981445,1732247081044,-1610.25968607,0.00029743,120]
[342981446,1732247081070,-1643.4135352,0.00029743,120]
[342981447,1732247081096,-2346.09675412,0.00029743,30]
[342981448,1732247081122,-1466.5596835,0.00029743,120]
[342981449,1732247081149,-2729.90364067,0.00029743,30]
[342981450,1732247081175,-16095.00974385,0.00029743,120]
[342981451,1732247081202,-633.4070556,0.00029743,30]
[342981452,1732247081229,-1597.43041485,0.00029743,120]
[342981453,1732247081256,-635.14980652,0.00029743,120]
[342981454,1732247081282,-1690.06295824,0.00029743,120]
[342981455,1732247081310,-239.55457441,0.00029743,30]
[342981456,1732247081337,-621.70925845,0.00029743,120]
[342981457,1732247081363,-347.45925819,0.00029743,120]
[342981458,1732247081389,-170.85735149,0.00029743,120]
[342981459,1732247081415,-219.8493083,0.00029743,120]
[342981460,1732247081442,-4970.64536096,0.00029743,120]
[342981461,1732247081466,-1000.0,0.00029743,120]
[342981462,1732247081490,-1000.0,0.00029743,120]
[342981463,1732247081517,-1000.0,0.00029743,60]
[342981464,1732247081541,-1000.0,0.00029743,90]
[342981465,1732247081564,-1000.0,0.00029743,90]
[342981466,1732247081592,-1323.76787502,0.00029743,120]
[342981467,1732247081616,-180.8077898,0.00029743,30]
[342981468,1732247081641,-3000.0,0.00029743,117]
[342981469,1732247081665,-4998.86563012,0.00029743,120]
[342981470,1732247081693,-1000.0,0.00029743,60]
[342981471,1732247081717,-69375.17813075,0.00029743,120]
[342981472,1732247081741,-115953.30805059,0.00029743,120]
[342981473,1732247081767,-14238.73056582,0.00029743,60]
[342981474,1732247081793,-12285.73126427,0.00029743,60]
[342981475,1732247081820,-160146.4198061,0.00029743,30]
[342981476,1732247081846,-31051.46732929,0.00029743,120]
[342981477,1732247081872,-85861.98731766,0.00029743,60]
[342981478,1732247081898,-373.4,0.00029743,60]
[342981479,1732247081930,-373.4,0.00029743,90]
[342981480,1732247081955,-373.4,0.00029743,120]
[342981481,1732247081980,-3005.2205197,0.00029743,120]
[342981482,1732247082005,-197.0219471,0.00029743,120]
[342981483,1732247082031,-1734.49974635,0.00029743,120]
[342981484,1732247082055,-694.2,0.00029743,30]
[342981485,1732247082210,-1703.3304991,0.00029743,30]
[342981486,1732247082237,-2133.21480574,0.00029743,90]
[342981487,1732247082263,-151.0,0.00029743,30]
[342981488,1732247082289,-170.725855,0.00029743,30]
[342981489,1732247082315,-250.0,0.00029743,30]
[342981490,1732247082340,-250.0,0.00029743,30]
[342981491,1732247082363,-250.0,0.00029743,30]
[342981492,1732247082386,-250.0,0.00029743,30]
[342981493,1732247082409,-250.0,0.00029743,30]
[342981494,1732247082433,-250.0,0.00029743,30]
[342981495,1732247082456,-250.0,0.00029743,30]
[342981496,1732247082479,-250.0,0.00029743,30]
[342981497,1732247082504,-250.0,0.00029743,30]
[342981498,1732247082533,-250.0,0.00029743,30]
[342981499,1732247082557,-250.0,0.00029743,30]
[342981500,1732247082582,-250.0,0.00029743,30]
[342981501,1732247083296,400.0,0.00014,3]
[342981502,1732247085229,-256288.93562662,0.00022,30]
[342981503,1732247085255,-202193.18086621,0.00022,30]
[342981504,1732247085408,-694.0,0.00024,20]
[342981505,1732247085473,-1000.5,0.00025,31]
[342981506,1732247085497,-1009.4,0.00025,31]
[342981507,1732247085526,-4746.04885614,0.00025,30]
[342981508,1732247085579,-6610.91235237,0.00026,30]
[342981509,1732247085605,-500.0,0.00026,20]
[342981510,1732247085775,-176.286797,0.00026301,41]
[342981511,1732247085800,-176.286797,0.00026301,80]
[342981512,1732247085825,-176.286797,0.00026301,119]
[342981513,1732247085859,-1819.2,0.000266,31]
[342981514,1732247085886,-1819.2,0.000266,31]
[342981515,1732247085912,-1819.2,0.000266,31]
[342981516,1732247085940,-1819.2,0.000266,31]
[342981517,1732247085966,-1819.2,0.000266,31]
[342981518,1732247085991,-1819.2,0.000266,31]
[342981519,1732247086017,-1819.2,0.000266,31]
[342981520,1732247086043,-1819.2,0.000266,31]
[342981521,1732247086067,-1819.2,0.000266,31]
[342981522,1732247086093,-1819.2,0.000266,31]
[342981523,1732247086118,-1819.2,0.000266,31]
[342981524,1732247086144,-1819.2,0.000266,31]
[342981525,1732247086174,-300.0,0.0002689,20]
[342981526,1732247086200,-1653.5842946,0.00027,60]
[342981527,1732247086224,-5000.0,0.00027,30]
[342981528,1732247086248,-5000.0,0.00027,30]
[342981529,1732247086272,-5000.0,0.00027,30]
[342981530,1732247086297,-5000.0,0.00027,30]
[342981531,1732247086321,-5000.0,0.00027,30]
[342981532,1732247086345,-5000.0,0.00027,30]
[342981533,1732247086370,-5000.0,0.00027,30]
[342981534,1732247086394,-5000.0,0.00027,30]
[342981535,1732247086418,-500.0,0.00027,23]
[342981536,1732247086443,-5000.0,0.00027013,30]
[342981537,1732247086468,-1819.2,0.000271,31]
[342981538,1732247086493,-1819.2,0.000271,31]
[342981539,1732247086520,-1819.2,0.000271,31]
[342981540,1732247086547,-1819.2,0.000271,31]
[342981541,1732247086572,-1819.2,0.000271,31]
[342981542,1732247086601,-1819.2,0.000271,31]
[342981543,1732247086628,-1819.2,0.000271,31]
[342981544,1732247086654,-1819.2,0.000271,31]
[342981545,1732247086682,-1819.2,0.000271,31]
[342981546,1732247086707,-1819.2,0.000271,31]
[342981547,1732247086733,-1819.2,0.000271,31]
[342981548,1732247086759,-1819.2,0.000271,31]
[342981549,1732247086785,-1819.2,0.000271,31]
[342981550,1732247086811,-1819.2,0.000271,31]
[342981551,1732247086838,-1819.2,0.000271,31]
[342981552,1732247086863,-1819.2,0.000271,31]
[342981553,1732247086889,-1819.2,0.000271,31]
[342981554,1732247086915,-1819.2,0.000271,31]
[342981555,1732247086944,-1819.2,0.000271,31]
[342981556,1732247086970,-1819.2,0.000271,31]
[342981557,1732247086997,-1819.2,0.000271,31]
[342981558,1732247087024,-1819.2,0.000271,31]
[342981559,1732247087051,-1819.2,0.000271,31]
[342981560,1732247087082,-1819.2,0.000271,31]
[342981561,1732247087115,-5000.0,0.00027286,30]
[342981562,1732247087145,-400.0,0.00027397,60]
[342981563,1732247087170,-10157.8,0.000275,30]
[342981564,1732247087197,-5000.0,0.00027561,30]
[342981565,1732247087231,-1819.2,0.000277,31]
[342981566,1732247087259,-1819.2,0.000277,31]
[342981567,1732247087286,-1819.2,0.000277,31]
[342981568,1732247087314,-1819.2,0.000277,31]
[342981569,1732247087340,-1819.2,0.000277,31]
[342981570,1732247087366,-1819.2,0.000277,31]
[342981571,1732247087392,-1819.2,0.000277,31]
[342981572,1732247087419,-1819.2,0.000277,31]
[342981573,1732247087446,-1819.2,0.000277,31]
[342981574,1732247087472,-1819.2,0.000277,31]
[342981575,1732247087498,-1819.2,0.000277,31]
[342981576,1732247087528,-1819.2,0.000277,31]
[342981577,1732247087557,-1819.2,0.000277,31]
[342981578,1732247087583,-1819.2,0.000277,31]
[342981579,1732247087611,-1819.2,0.000277,31]
[342981580,1732247087638,-1819.2,0.000277,31]
[342981581,1732247087665,-1819.2,0.000277,31]
[342981582,1732247087693,-1819.2,0.000277,31]
[342981583,1732247087720,-1819.2,0.000277,31]
[342981584,1732247087746,-1819.2,0.000277,31]
[342981585,1732247087772,-1819.2,0.000277,31]
[342981586,1732247087799,-1819.2,0.000277,31]
[342981587,1732247087827,-1819.2,0.000277,31]
[342981588,1732247087855,-1819.2,0.000277,31]
[342981589,1732247087881,-5000.0,0.0002784,30]
[342981590,1732247087911,-307727.28761972,0.00028,30]
[342981591,1732247087936,-2000.0,0.00028,60]
[342981592,1732247087960,-944.076577,0.00028,26]
[342981593,1732247087985,-873.37,0.00028121,30]
[342981594,1732247088012,-1819.2,0.000282,31]
[342981595,1732247088039,-1819.2,0.000282,31]
[342981596,1732247088240,-1819.2,0.000282,31]
[342981597,1732247088268,-1819.2,0.000282,31]
[342981598,1732247088296,-1819.2,0.000282,31]
[342981599,1732247088324,-1819.2,0.000282,31]
[342981600,1732247088351,-1819.2,0.000282,31]
[342981601,1732247088377,-1819.2,0.000282,31]
[342981602,1732247088407,-1819.2,0.000282,31]
[342981603,1732247088436,-1819.2,0.000282,31]
[342981604,1732247088462,-1819.2,0.000282,31]
[342981605,1732247088488,-1819.2,0.000282,31]
[342981606,1732247088519,-1819.2,0.000282,31]
[342981607,1732247088546,-1819.2,0.000282,31]
[342981608,1732247088574,-1819.2,0.000282,31]
[342981609,1732247088603,-1819.2,0.000282,31]
[342981610,1732247088629,-1819.2,0.000282,31]
[342981611,1732247088657,-1819.2,0.000282,31]
[342981612,1732247088687,-1819.2,0.000282,31]
[342981613,1732247088715,-1819.2,0.000282,31]
[342981614,1732247088743,-1819.2,0.000282,31]
[342981615,1732247088771,-1819.2,0.000282,31]
[342981616,1732247088798,-1819.2,0.000282,31]
[342981617,1732247088824,-1819.2,0.000282,31]
[342981618,1732247088855,-9783.33999999,0.000283,42]
[342981619,1732247088881,-9384.02000001,0.000284,25]
[342981620,1732247088906,-10157.8,0.000284,30]
[342981621,1732247088931,-300.0,0.000286,30]
[342981622,1732247088960,-1819.2,0.000288,31]
[342981623,1732247088988,-1819.2,0.000288,31]
[342981624,1732247089015,-1819.2,0.000288,31]
[342981625,1732247089041,-1819.2,0.000288,31]
[342981626,1732247089067,-1819.2,0.000288,31]
[342981627,1732247089095,-1819.2,0.000288,31]
[342981628,1732247089122,-1819.2,0.000288,31]
[342981629,1732247089149,-1819.2,0.000288,31]
[342981630,1732247089176,-1819.2,0.000288,31]
[342981631,1732247089206,-1819.2,0.000288,31]
[342981632,1732247089232,-1819.2,0.000288,31]
[342981633,1732247089258,-1819.2,0.000288,31]
[342981634,1732247089285,-1819.2,0.000288,31]
[342981635,1732247089312,-1819.2,0.000288,31]
[342981636,1732247089338,-1819.2,0.000288,31]
[342981637,1732247089365,-1819.2,0.000288,31]
[342981638,1732247089391,-400.0,0.000289,120]
[342981639,1732247089415,-5691.95155098,0.00029,30]
[342981640,1732247089440,-5000.0,0.00029,30]
[342981641,1732247089465,-4458.40803254,0.00029,120]
[342981642,1732247089490,-1333.0,0.00029041,120]
[342981643,1732247089517,-10157.8,0.000294,30]
[342981644,1732247089551,-500.0,0.0003,120]
[342981645,1732247089578,-412.00592753,0.0003,30]
[342981646,1732247089603,-30000.0,0.0003,120]
[342981647,1732247089627,-10595.84115679,0.0003,120]
[342981648,1732247089651,-5000.0,0.0003,120]
[342981649,1732247089684,-5000.0,0.0003,120]
[342981650,1732247089711,-354.38891,0.0003,120]
[342981651,1732247089737,-299.91963579,0.0003,30]
[342981652,1732247089763,-488.0,0.0003,30]
[342981653,1732247089788,-488.0,0.0003,30]
[342981654,1732247089813,-4002.5758509,0.0003,60]
[342981655,1732247089838,-200.0,0.0003,120]
[342981656,1732247089862,-196.83330519,0.0003,30]
[342981657,1732247089886,-285.0,0.0003,120]
[342981658,1732247089911,-151.0,0.0003,120]
[342981659,1732247089937,-806.0,0.0003,120]
[342981660,1732247089962,-46808.67648256,0.0003,30]
[342981661,1732247089986,-30107.48557814,0.0003,60]
[342981662,1732247090011,-30532.94220146,0.0003,30]
[342981663,1732247090035,-58176.0,0.0003,120]
[342981664,1732247090060,-4843.2,0.0003,60]
[342981665,1732247090084,-12171.68027779,0.0003,30]
[342981666,1732247090109,-185.42222222,0.0003,120]
[342981667,1732247090134,-50659.6861176,0.0003,120]
[342981668,1732247090158,-25470.40802583,0.0003,120]
[342981669,1732247090184,-9910.0,0.0003,30]
[342981670,1732247090209,-364.22729953,0.0003,30]
[342981671,1732247090234,-761.28,0.00030136,120]
[342981672,1732247090266,-761.28,0.00030136,120]
[342981673,1732247090291,-761.28,0.00030136,120]
[342981674,1732247090316,-761.28,0.00030136,120]
[342981675,1732247090340,-761.28,0.00030136,120]
[342981676,1732247090367,-761.28,0.00030136,120]
[342981677,1732247090392,-761.28,0.00030136,120]
[342981678,1732247090419,-761.28,0.00030136,120]
[342981679,1732247090449,-761.28,0.00030136,120]
[342981680,1732247090478,-761.28,0.00030136,120]
[342981681,1732247090504,-761.28,0.00030136,120]
[342981682,1732247090530,-761.28,0.00030136,120]
[342981683,1732247090555,-761.28,0.00030136,120]
[342981684,1732247090580,-761.28,0.00030136,120]
[342981685,1732247090607,-761.28,0.00030136,120]
[342981686,1732247090779,-761.28,0.00030136,120]
[342981687,1732247090805,-761.28,0.00030136,120]
[342981688,1732247090831,-761.28,0.00030136,120]
[342981689,1732247090856,-761.28,0.00030136,120]
[342981690,1732247090882,-761.28,0.00030136,120]
[342981691,1732247090908,-761.28,0.00030136,120]
[342981692,1732247090935,-761.28,0.00030136,120]
[342981693,1732247090960,-761.28,0.00030136,120]
[342981694,1732247090985,-761.38228464,0.00030136,120]
[342981695,1732247091011,-400.0,0.00030137,60]
[342981696,1732247091036,-6250.0,0.00030137,120]
[342981697,1732247091061,-505.80189,0.000302,120]
[342981698,1732247091089,-354.38891,0.000306,120]
[342981699,1732247091114,-50000.0,0.000309,20]
[342981700,1732247091140,-185.42222222,0.00030959,120]
[342981701,1732247091167,-1000.0,0.00031,120]
[342981702,1732247091195,-20000.0,0.00031,120]
[342981703,1732247091219,-505.80189,0.00031,120]
[342981704,1732247091245,-151.0,0.00031123,120]
[342981705,1732247091270,-346.93847,0.000312,120]
[342981706,1732247091296,-313.55235,0.000312,120]
[342981707,1732247091323,-256.91481,0.000312,120]
[342981708,1732247091349,-354.38891,0.000312,120]
[342981709,1732247091376,-162.78427086,0.000312,30]
[342981710,1732247091403,-1000.0,0.00031506,30]
[342981711,1732247091427,-1000.0,0.00031506,30]
[342981712,1732247091455,-1073.0,0.00031737,120]
[342981713,1732247091482,-185.42222222,0.00031918,120]
[342981714,1732247091510,-10000.0,0.00032,20]
[342981715,1732247091534,-10040.52841701,0.00032,30]
[342981716,1732247091558,-20000.0,0.00032,120]
[342981717,1732247091584,-13981.0,0.00032,30]
[342981718,1732247091608,-157.40189221,0.00032,120]
[342981719,1732247091633,-279.711115,0.00032,30]
[342981720,1732247091656,-500.0,0.00032,30]
[342981721,1732247091683,-500.0,0.00032,30]
[342981722,1732247091713,-500.0,0.00032,30]
[342981723,1732247091738,-500.0,0.00032,30]
[342981724,1732247091763,-500.0,0.00032,30]
[342981725,1732247091788,-500.0,0.00032,30]
[342981726,1732247091814,-500.0,0.00032,30]
[342981727,1732247091840,-500.0,0.00032,30]
[342981728,1732247091865,-500.0,0.00032,30]
[342981729,1732247091889,-737.06139537,0.00032,30]
[342981730,1732247091913,-500.0,0.00032,30]
[342981731,1732247091952,-500.0,0.00032,30]
[342981732,1732247091988,-500.0,0.00032,30]
[342981733,1732247092027,-500.0,0.00032,30]
[342981734,1732247092066,-500.0,0.00032,30]
[342981735,1732247092103,-500.0,0.00032,30]
[342981736,1732247092137,-500.0,0.00032,30]
[342981737,1732247092173,-500.0,0.00032,30]
[342981738,1732247092209,-500.0,0.00032,30]
[342981739,1732247092244,-612.51110588,0.00032,30]
[342981740,1732247092282,-500.0,0.00032,30]
[342981741,1732247092321,-703.44746705,0.00032,30]
[342981742,1732247092350,-500.0,0.00032,30]
[342981743,1732247092386,-500.0,0.00032,30]
[342981744,1732247092419,-500.0,0.00032,30]
[342981745,1732247092455,-679.40581701,0.00032,30]
[342981746,1732247092485,-500.0,0.00032,30]
[342981747,1732247092516,-500.0,0.00032,30]
[342981748,1732247092547,-500.0,0.00032,30]
[342981749,1732247092580,-740.86371525,0.00032,30]
[342981750,1732247092615,-500.0,0.00032,30]
[342981751,1732247092647,-500.0,0.00032,30]
[342981752,1732247092679,-624.25978167,0.00032,30]
[342981753,1732247092710,-2700.0,0.00032,30]
[342981754,1732247092743,-2700.0,0.00032,30]
[342981755,1732247092774,-2700.0,0.00032,30]
[342981756,1732247092806,-2700.0,0.00032,30]
[342981757,1732247092837,-2700.0,0.00032,30]
[342981758,1732247092868,-2700.0,0.00032,30]
[342981759,1732247092898,-2700.0,0.00032,30]
[342981760,1732247092929,-2700.0,0.00032,30]
[342981761,1732247092963,-2700.0,0.00032,30]
[342981762,1732247092993,-2700.0,0.00032,30]
[342981763,1732247093024,-2700.0,0.00032,30]
[342981764,1732247093057,-2700.0,0.00032,30]
[342981765,1732247093088,-2700.0,0.00032,30]
[342981766,1732247093120,-3830.04287307,0.00032,30]
[342981767,1732247093152,-2500.0,0.00032,30]
[342981768,1732247093185,-2500.0,0.00032,30]
[342981769,1732247093216,-2500.0,0.00032,30]
[342981770,1732247093247,-2500.0,0.00032,30]
[342981771,1732247093279,-2500.0,0.00032,30]
[342981772,1732247093311,-2500.0,0.00032,30]
[342981773,1732247093343,-2500.0,0.00032,30]
[342981774,1732247093376,-2500.0,0.00032,30]
[342981775,1732247093583,-2500.0,0.00032,30]
[342981776,1732247093618,-2500.0,0.00032,30]
[342981777,1732247093644,-2500.0,0.00032,30]
[342981778,1732247093668,-2500.0,0.00032,30]
[342981779,1732247093695,-2500.0,0.00032,30]
[342981780,1732247093721,-3771.00588171,0.00032,30]
[342981781,1732247093748,-500.0,0.000322,120]
[342981782,1732247093773,-151.0,0.00032247,120]
[342981783,1732247093801,-644.28174559,0.00032877,60]
[342981784,1732247093825,-185.42222222,0.00032877,120]
[342981785,1732247093855,-3767.3,0.000329,30]
[342981786,1732247093879,-1412.0,0.000329,30]
[342981787,1732247093904,-1978.88,0.00033,30]
[342981788,1732247093931,-1000.0,0.00033,120]
[342981789,1732247093956,-300.0,0.00033,120]
[342981790,1732247093981,-488.0,0.00033,30]
[342981791,1732247094007,-20000.0,0.00033,120]
[342981792,1732247094033,-500.0,0.00033,30]
[342981793,1732247094058,-500.0,0.00033,30]
[342981794,1732247094083,-500.0,0.00033,30]
[342981795,1732247094109,-500.0,0.00033,30]
[342981796,1732247094134,-500.0,0.00033,30]
[342981797,1732247094163,-500.0,0.00033,30]
[342981798,1732247094191,-500.0,0.00033,30]
[342981799,1732247094218,-500.0,0.00033,30]
[342981800,1732247094245,-500.0,0.00033,30]
[342981801,1732247094272,-500.0,0.00033,30]